fUST/lending_fUST_20260405
["ID","MTS","AMOUNT","RATE_DAILY","PERIOD"]
[419782917,1775377838981,-300.0,0.00013832,2]
[419782918,1775377838990,-300.0,0.00013832,2]
[419782919,1775377838999,-300.0,0.00013832,2]
[419782920,1775377839009,-300.0,0.00013832,2]
[419782921,1775377839018,-300.0,0.00013832,2]
[419782922,1775377839028,-300.0,0.00013832,2]
[419782923,1775377839038,-300.0,0.00013832,2]
[419782924,1775377839047,-300.0,0.00013832,2]
[419782925,1775377839055,-300.0,0.00013832,2]
[419782926,1775377839065,-300.0,0.00013832,2]
[419782927,1775377839074,-151.0,0.00013832,2]
[419782928,1775377839083,-600.0,0.00014108,2]
[419782929,1775377839092,-1003.56827071,0.00014175,2]
[419782930,1775377839101,-720.0,0.00015518,2]
[419782931,1775377839111,-151.0,0.00015518,2]
[419782932,1775377839120,-182.9199372,0.00015735,2]
[419782933,1775377839129,-220.8419412,0.00015735,2]
[419782934,1775377839138,-210.01638374,0.00016002,2]
[419783517,1775377846651,2000.0,8.903e-05,2]
[419783550,1775377847107,-5000.0,0.00015842,2]
[419783552,1775377847118,-89.98361626,0.00016002,2]
[419783554,1775377847130,-151.0,0.00016438,2]
[419783556,1775377847142,-151.0,0.00016438,2]
[419783559,1775377847155,-151.0,0.00016438,2]
[419783561,1775377847168,-151.0,0.00016438,2]
[419783563,1775377847181,-151.0,0.00016438,2]
[419783566,1775377847193,-151.0,0.00016438,2]
[419783568,1775377847204,-151.0,0.00016438,2]
[419783570,1775377847217,-151.0,0.00016438,2]
[419783572,1775377847229,-864.0,0.0001707,2]
[419783575,1775377847242,-151.0,0.0001707,2]
[419783577,1775377847253,-151.0,0.0001707,2]
[419783579,1775377847264,-153.060625,0.0001707,2]
[419783581,1775377847275,-138.82177812,0.0001707,2]
[419783586,1775377847310,2000.0,8.803e-05,2]
[419783636,1775377847770,2000.0,8.703e-05,2]
[419783692,1775377848355,2000.0,8.603e-05,2]
[419783745,1775377848908,2000.0,8.503e-05,2]
[419783784,1775377849499,2000.0,8.403e-05,2]
[419783846,1775377850428,2000.0,8.303e-05,2]
[419783884,1775377850997,2000.0,8.203e-05,2]
[419783925,1775377851568,165.04366921,8.103e-05,2]
[419784950,1775377885937,151.0,0.00015,90]
[419784952,1775377919476,-1069.58026199,0.00015756,2]
[419784954,1775377925973,151.0,9e-05,2]
[419784955,1775377956507,151.0,9e-05,2]
[419785041,1775378458512,3087.08,9.003e-05,2]
[419785100,1775378733188,158.409918,5.191e-05,2]
[419785101,1775378797103,5000.0,9.003e-05,2]
[419785102,1775378812021,5000.0,9.003e-05,2]
[419785103,1775378819450,5000.0,9.003e-05,2]
[419785104,1775378834407,5000.0,9.003e-05,2]
[419785105,1775378842096,5000.0,9.003e-05,2]
[419785224,1775378856446,5000.0,9.003e-05,2]
[419785225,1775378864373,3296.981142,9.003e-05,2]
[419785226,1775378879478,5000.0,9.003e-05,2]
[419785227,1775378901173,5000.0,9.003e-05,2]
[419785272,1775378922881,5000.0,9.003e-05,2]
[419785273,1775378937920,5000.0,9.003e-05,2]
[419785274,1775378945803,5000.0,9.003e-05,2]
[419785279,1775378967963,5000.0,9.003e-05,2]
[419785281,1775378990528,5000.0,9.003e-05,2]
[419785283,1775379012202,5000.0,9.003e-05,2]
[419785307,1775379031818,-1130.29265018,9.133e-05,2]
[419785308,1775379031828,-548.0,9.133e-05,2]
[419785309,1775379031839,-166.7459012,0.0001,2]
[419785310,1775379031848,-300.0,0.00010198,2]
[419785311,1775379031858,-300.0,0.00010198,2]
[419785312,1775379031868,-1011.68012151,0.00010198,2]
[419785313,1775379031879,-188.31987849,0.00010198,2]
[419785314,1775379031889,-830.83012151,0.00010199,2]
[419785315,1775379031900,-647.400001,0.00010199,2]
[419785316,1775379031912,-4535.38737201,0.00010199,2]
[419785324,1775379038154,-5000.0,0.00010097,2]
[419785325,1775379038164,-8520.22306124,0.00010199,2]
[419785326,1775379038173,-300.0,0.00010199,2]
[419785327,1775379038182,-300.0,0.00010199,2]
[419785328,1775379038192,-300.0,0.00010199,2]
[419785329,1775379038201,-300.0,0.00010199,2]
[419785330,1775379038211,-300.0,0.00010199,2]
[419785331,1775379038220,-300.0,0.00010199,2]
[419785332,1775379038230,-300.0,0.00010199,2]
[419785333,1775379038240,-300.0,0.00010199,2]
[419785334,1775379038249,-300.0,0.00010199,2]
[419785335,1775379038258,-300.0,0.00010199,2]
[419785336,1775379038268,-300.0,0.00010199,2]
[419785337,1775379038277,-300.0,0.00010199,2]
[419785338,1775379038286,-300.0,0.00010199,2]
[419785339,1775379038295,-300.0,0.00010199,2]
[419785340,1775379038305,-300.0,0.00010199,2]
[419785341,1775379038427,-214.881172,0.00010199,2]
[419785342,1775379038436,-158.409918,0.00010381,2]
[419785343,1775379038446,-600.0,0.00010402,2]
[419785344,1775379038455,-420.0,0.00011215,2]
[419785345,1775379038465,-1588.0,0.00011218,2]
[419785346,1775379038475,-720.0,0.00011442,2]
[419785347,1775379038484,-587.0,0.00012335,2]
[419785348,1775379038493,-864.0,0.00012586,2]
[419785349,1775379038502,-166.7459012,0.00013194,7]
[419785350,1775379038511,-215.94839787,0.00013233,14]
[419785351,1775379038521,-404.0,0.00013565,2]
[419785352,1775379038529,-228.125171,0.00013699,2]
[419785353,1775379038539,-228.125171,0.00013699,2]
[419785354,1775379038548,-228.125171,0.00013699,2]
[419785355,1775379038558,-1000.0,0.00013699,2]
[419785356,1775379038567,-1000.0,0.00013845,2]
[419785357,1775379038576,-228.125171,0.00014165,2]
[419785358,1775379038586,-228.125171,0.00014165,2]
[419785359,1775379038595,-228.125171,0.00014165,2]
[419785360,1775379038604,-226.49750266,0.00014341,2]
[419785361,1775379038614,-258.85428876,0.00014341,2]
[419785362,1775379038623,-404.05536636,0.00014341,2]
[419785363,1775379038632,-1000.0,0.0001523,2]
[419785364,1775379038641,-244.0,0.0001523,2]
[419785365,1775379038649,-500.0,0.00015273,2]
[419785366,1775379038659,-500.0,0.00015273,2]
[419785367,1775379038668,-500.0,0.00015273,2]
[419785368,1775379038677,-500.0,0.000153,2]
[419785369,1775379038685,-500.0,0.000153,2]
[419785370,1775379038694,-500.0,0.000153,2]
[419785371,1775379038703,-502.24424742,0.00015821,2]
[419785372,1775379038712,-503.06663606,0.00015821,2]
[419785373,1775379038721,-228.125171,0.00015821,2]
[419785374,1775379038730,-228.125171,0.00015821,2]
[419785375,1775379038739,-1000.0,0.00015848,2]
[419785376,1775379038749,-1000.0,0.00015848,2]
[419785377,1775379038759,-198.80845875,0.0001589,2]
[419785378,1775379038769,-500.0,0.0001589,2]
[419785379,1775379038778,-500.0,0.0001589,2]
[419785381,1775379038787,-500.0,0.0001589,2]
[419785382,1775379038796,-500.0,0.0001589,2]
[419785384,1775379038804,-500.0,0.0001589,2]
[419785386,1775379038813,-500.0,0.0001589,2]
[419785388,1775379038822,-500.0,0.0001589,2]
[419785390,1775379038832,-151.5,0.0001589,2]
[419785392,1775379038841,-151.5,0.0001589,2]
[419785394,1775379038850,-216.20870551,0.0001589,2]
[419785396,1775379038860,-500.0,0.0001589,2]
[419785398,1775379038869,-500.0,0.0001589,2]
[419785400,1775379038878,-500.0,0.0001589,2]
[419785402,1775379038887,-500.0,0.0001589,2]
[419785404,1775379038896,-500.0,0.0001589,2]
[419785406,1775379038905,-313.63458912,0.0001589,2]
[419785408,1775379038914,-175.87827553,0.0001589,2]
[419785410,1775379038923,-189.41911871,0.0001589,2]
[419785412,1775379038932,-228.125171,0.0001589,2]
[419785414,1775379038942,-228.125171,0.0001589,2]
[419785416,1775379038951,-228.125171,0.00015992,2]
[419785418,1775379038961,-228.125171,0.00015992,2]
[419785420,1775379038970,-236.6791215,0.00016076,2]
[419785422,1775379038980,-500.0,0.00016164,2]
[419785424,1775379038989,-500.0,0.00016164,2]
[419785425,1775379038998,-418.6954844,0.00016164,2]
[419785427,1775379039008,-151.5,0.00016164,2]
[419785429,1775379039017,-165.41410299,0.00016164,2]
[419785431,1775379039026,-185.14513353,0.00016164,2]
[419785433,1775379039036,-213.95682221,0.00016164,2]
[419785435,1775379039045,-500.0,0.00016164,2]
[419785437,1775379039054,-500.0,0.00016164,2]
[419785439,1775379039063,-500.0,0.00016164,2]
[419785441,1775379039072,-500.0,0.00016164,2]
[419785443,1775379039081,-500.0,0.00016164,2]
[419785445,1775379039090,-313.70150338,0.00016164,2]
[419785447,1775379039100,-500.0,0.00016164,2]
[419785449,1775379039109,-203.93112626,0.00016164,2]
[419785451,1775379039118,-500.0,0.00016164,2]
[419785453,1775379039127,-500.0,0.00016164,2]
[419785455,1775379039136,-500.0,0.00016164,2]
[419785457,1775379039145,-500.0,0.00016164,2]
[419785458,1775379039154,-500.0,0.00016164,2]
[419785460,1775379039164,-500.0,0.00016164,2]
[419785461,1775379039173,-500.0,0.00016164,2]
[419785462,1775379039182,-500.0,0.00016164,2]
[419785463,1775379039191,-500.0,0.00016164,2]
[419785464,1775379039200,-500.0,0.00016164,2]
[419785466,1775379039209,-500.0,0.00016164,2]
[419785468,1775379039218,-500.0,0.00016164,2]
[419785470,1775379039227,-622.0,0.00016164,2]
[419785472,1775379039236,-500.0,0.00016164,2]
[419785474,1775379039246,-500.0,0.00016164,2]
[419785476,1775379039255,-500.0,0.00016164,2]
[419785478,1775379039264,-500.0,0.00016164,2]
[419785480,1775379039273,-207.66252729,0.00016164,2]
[419785482,1775379039284,-187.3351965,0.00016164,2]
[419785484,1775379039292,-236.95210945,0.00016164,2]
[419785485,1775379039301,-189.81002337,0.00016164,2]
[419785487,1775379039311,-151.5,0.00016164,2]
[419785490,1775379039321,-274.20529331,0.00016164,2]
[419785492,1775379039333,-151.5,0.00016164,2]
[419785494,1775379039346,-183.99898947,0.00016164,2]
[419785497,1775379039359,-151.5,0.00016164,2]
[419785499,1775379039372,-151.5,0.00016164,2]
[419785501,1775379039383,-176.76470482,0.00016164,2]
[419785503,1775379039394,-500.0,0.000162,2]
[419785506,1775379039406,-947.0422438,0.00016291,2]
[419785507,1775379039418,-166.7459012,0.00016389,14]
[419785508,1775379039431,-1500.0,0.00016396,2]
[419785509,1775379039443,-1500.0,0.00016396,2]
[419785510,1775379039457,-158.11772741,0.00016438,2]
[419785511,1775379039469,-179.109756,0.00016438,2]
[419785512,1775379039480,-179.109756,0.00016438,2]
[419785513,1775379039492,-179.109756,0.00016438,2]
[419785514,1775379039505,-179.109756,0.00016438,2]
[419785515,1775379039517,-179.109756,0.00016438,2]
[419785516,1775379039530,-179.109756,0.00016438,2]
[419785517,1775379039541,-179.109756,0.00016438,2]
[419785518,1775379039553,-179.109756,0.00016438,2]
[419785519,1775379039565,-179.109756,0.00016438,2]
[419785520,1775379039576,-179.109756,0.00016438,2]
[419785521,1775379039587,-179.109756,0.00016438,2]
[419785522,1775379039597,-179.109756,0.00016438,2]
[419785523,1775379039609,-179.109756,0.00016438,2]
[419785524,1775379039620,-179.109756,0.00016438,2]
[419785525,1775379039632,-179.109756,0.00016438,2]
[419785526,1775379039656,-179.109756,0.00016438,2]
[419785527,1775379039677,-179.109756,0.00016438,2]
[419785528,1775379039693,-179.109756,0.00016438,2]
[419785529,1775379039707,-179.109756,0.00016438,2]
[419785530,1775379039722,-179.10975881,0.00016438,2]
[419785531,1775379039737,-151.0,0.00016438,2]
[419785532,1775379039751,-151.0,0.00016438,2]
[419785533,1775379039761,-151.0,0.00016438,2]
[419785534,1775379039772,-151.0,0.00016438,2]
[419785535,1775379039783,-151.0,0.00016438,2]
[419785536,1775379039794,-151.0,0.00016438,2]
[419785537,1775379039808,-151.0,0.00016438,2]
[419785538,1775379039821,-151.0,0.00016438,2]
[419785539,1775379039832,-151.0,0.00016438,2]
[419785540,1775379039843,-151.0,0.00016438,2]
[419785541,1775379039857,-151.0,0.00016438,2]
[419785542,1775379039871,-151.0,0.00016438,2]
[419785543,1775379039884,-151.0,0.00016438,2]
[419785544,1775379039896,-151.0,0.00016438,2]
[419785545,1775379039908,-151.0,0.00016438,2]
[419785548,1775379039924,-151.0,0.00016438,2]
[419785550,1775379039936,-151.0,0.00016438,2]
[419785552,1775379039947,-202.330102,0.00016438,2]
[419785554,1775379039958,-1211.904717,0.00016438,2]
[419785556,1775379039968,-502.04061485,0.00016748,2]
[419785559,1775379039979,-1000.0,0.00016752,2]
[419785561,1775379039990,-492.0,0.00016752,2]
[419785563,1775379040004,-500.0,0.000169,2]
[419785566,1775379040017,-2000.0,0.00016944,2]
[419785568,1775379040029,-2000.0,0.00016944,2]
[419785570,1775379040043,-504.18770079,0.0001697,2]
[419785573,1775379040055,-197.03838137,0.0001707,2]
[419785575,1775379040070,-354.66908646,0.0001707,2]
[419785577,1775379040082,-630.52282037,0.0001707,2]
[419785580,1775379040094,-985.19190683,0.0001707,2]
[419785582,1775379040106,-335.36406319,0.0001707,2]
[419785584,1775379040117,-164.6504301,0.0001707,2]
[419785586,1775379040129,-296.0744034,0.0001707,2]
[419785589,1775379040141,-1417.25766948,0.0001707,2]
[419785591,1775379040152,-382.88994186,0.0001707,2]
[419785593,1775379040163,-500.0,0.00017325,2]
[419785595,1775379040174,-1000.0,0.00017448,2]
[419785597,1775379040185,-2500.0,0.00017492,2]
[419785599,1775379040195,-1031.3571458,0.00017492,2]
[419785602,1775379040206,-342.23182586,0.00017818,2]
[419785604,1775379040217,-1000.0,0.00017873,2]
[419785606,1775379040228,-1500.0,0.00017996,2]
[419785608,1775379040238,-3000.0,0.0001804,2]
[419785610,1775379040249,-236.6791215,0.00018096,2]
[419785612,1775379040260,-504.18770076,0.00018178,2]
[419785615,1775379040271,-1500.0,0.00018421,2]
[419785617,1775379040282,-1000.0,0.00018428,2]
[419785619,1775379040293,-791.0,0.00018428,2]
[419785621,1775379040304,-2000.0,0.00018544,2]
[419785623,1775379040315,-3500.0,0.00018588,2]
[419785625,1775379040327,-155.0,0.00018862,2]
[419785627,1775379040339,-508.32530206,0.00018903,2]
[419785629,1775379040352,-1342.38833765,0.00018969,2]
[419785631,1775379040365,-2500.0,0.00019092,2]
[419785634,1775379040377,-176.435346,0.00019099,2]
[419785636,1775379040389,-1446.80311584,0.00019136,2]
[419785638,1775379040402,-453.8701858,0.00019153,2]
[419785641,1775379040414,-196.3265865,0.00019154,2]
[419785643,1775379040424,-455.3790597,0.00019166,2]
[419785645,1775379040436,-455.3790597,0.00019166,2]
[419785647,1775379040449,-155.327,0.00019175,2]
[419785650,1775379040462,-297.27340165,0.00019177,2]
[419785652,1775379040474,-601.70605631,0.00019178,2]
[419785654,1775379040486,-200.0,0.00019178,2]
[419785656,1775379040496,-200.0,0.00019178,2]
[419785658,1775379040507,-155.32,0.00019178,2]
[419785660,1775379040518,-155.33,0.00019178,2]
[419785663,1775379040531,-1055.95,0.00019178,2]
[419785677,1775379040654,-200.0,0.00019178,2]
[419785679,1775379040670,-455.95,0.00019178,2]
[419785681,1775379040679,-3766.495663,0.00019178,2]
[419785683,1775379040692,-3766.495663,0.00019178,2]
[419785685,1775379040702,-3766.495663,0.00019178,2]
[419785687,1775379040712,-3766.495663,0.00019178,2]
[419785689,1775379040721,-3766.495663,0.00019178,2]
[419785691,1775379040730,-1453.56950435,0.00019178,2]
[419786261,1775379047439,-228.125171,0.00013699,2]
[419786263,1775379047449,-228.125171,0.00014165,2]
[419786265,1775379047459,-228.125171,0.00015821,2]
[419786267,1775379047468,-228.125171,0.00015821,2]
[419786269,1775379047476,-228.125171,0.0001589,2]
[419786271,1775379047485,-228.125171,0.0001589,2]
[419786273,1775379047494,-172.91564067,0.00015992,2]
[419787611,1775379618561,927.20537433,9.003e-05,2]
[419787613,1775379661905,-2616.96997837,9.358e-05,2]
[419787649,1775380202635,3343.24401996,7e-05,2]
[419787650,1775380207037,5000.0,9.003e-05,2]
[419787652,1775380229521,5000.0,9.003e-05,2]
[419787668,1775380232080,-511.86879864,9.07e-05,2]
[419787669,1775380232090,-300.0,9.169e-05,2]
[419787670,1775380232100,-177.10947351,9.17e-05,2]
[419787716,1775380238327,-370.89052649,9.17e-05,2]
[419787717,1775380238338,-635.36026872,9.453e-05,2]
[419787718,1775380238348,-620.76801344,9.926e-05,2]
[419787719,1775380238358,-673.72144149,0.0001,2]
[419787720,1775380238368,-300.0,0.00010086,2]
[419787721,1775380238378,-498.46541308,0.000104,2]
[419787722,1775380238388,-620.03840067,0.00010422,2]
[419787723,1775380238398,-620.00192003,0.00010943,2]
[419787724,1775380238408,-620.000096,0.0001149,2]
[419787725,1775380238418,-620.0000048,0.00012065,2]
[419787726,1775380238427,-500.0,0.0001216,2]
[419787727,1775380238436,-1000.0,0.00013699,2]
[419787728,1775380238446,-266.87924656,0.00014718,2]
[419787729,1775380238455,-200.104323,0.0001551,2]
[419787730,1775380238465,-305.00485322,0.0001567,2]
[419787731,1775380238475,-171.0,0.00015799,2]
[419787732,1775380238484,-400.0,0.000158,2]
[419787733,1775380238494,-476.57008315,0.00016622,2]
[419787734,1775380238504,-189.549681,0.00017437,2]
[419787735,1775380238513,-685.57465882,0.00017574,2]
[419787736,1775380238523,-500.0,0.0001762,2]
[419787737,1775380238532,-175.441647,0.0001832,2]
[419787738,1775380238542,-162.4932276,0.00018425,2]
[419787739,1775380238552,-292.48780968,0.00018425,2]
[419787740,1775380238561,-519.97832833,0.00018425,2]
[419787741,1775380238571,-812.46613801,0.00018425,2]
[419787742,1775380238580,-1168.7812875,0.00018425,2]
[419787743,1775380238590,-319.12383852,0.00018425,2]
[419787744,1775380238599,-364.71295831,0.00018425,2]
[419787745,1775380238609,-569.86399736,0.00018425,2]
[419787746,1775380238618,-819.78355205,0.00018425,2]
[419787747,1775380238628,-558.1219412,0.00018586,2]
[419787748,1775380238638,-383.3856789,0.00018586,2]
[419787749,1775380238648,-473.358243,0.00018586,2]
[419787750,1775380238657,-500.0,0.00019055,2]
[419787751,1775380238672,-455.3790597,0.00019166,2]
[419787752,1775380238685,-151.0,0.00019178,2]
[419787753,1775380238699,-500.0,0.00019178,2]
[419787754,1775380238711,-151.84161305,0.00019222,2]
[419787755,1775380238721,-151.0,0.00019222,2]
[419787756,1775380238734,-151.0,0.00019222,2]
[419787757,1775380238747,-151.0,0.00019222,2]
[419787758,1775380238759,-151.0,0.00019222,2]
[419787759,1775380238772,-151.0,0.00019222,2]
[419787760,1775380238785,-151.0,0.00019222,2]
[419787761,1775380238798,-151.0,0.00019222,2]
[419787762,1775380238810,-557.5788265,0.00019222,2]
[419787763,1775380238822,-557.5788265,0.00019222,2]
[419787764,1775380238835,-151.0,0.00019222,2]
[419787765,1775380238848,-151.0,0.00019222,2]
[419787766,1775380238860,-151.0,0.00019222,2]
[419787767,1775380238872,-151.0,0.00019222,2]
[419787768,1775380238884,-2230.315306,0.00019222,2]
[419787769,1775380238896,-500.0,0.00019265,2]
[419787770,1775380238909,-500.0,0.00019265,2]
[419787771,1775380238919,-500.0,0.00019265,2]
[419787772,1775380238930,-500.0,0.00019265,2]
[419787773,1775380238941,-500.0,0.00019265,2]
[419787774,1775380238954,-500.0,0.00019265,2]
[419787775,1775380238965,-500.0,0.00019265,2]
[419787776,1775380238978,-500.0,0.00019265,2]
[419787777,1775380238991,-500.0,0.00019265,2]
[419787778,1775380239004,-239.68782943,0.00019265,2]
[419787779,1775380239017,-578.20924308,0.00019277,2]
[419787780,1775380239029,-599.60298507,0.00019332,2]
[419787781,1775380239042,-621.78829552,0.00019387,2]
[419787782,1775380239054,-644.79446246,0.00019442,2]
[419787783,1775380239068,-575.37393313,0.00019497,2]
[419788394,1775380246606,-93.27792444,0.00019497,2]
[419788396,1775380246618,-644.0,0.00019521,2]
[419788398,1775380246630,-1406.0,0.00019521,2]
[419788401,1775380246641,-845.061,0.00019521,2]
[419788403,1775380246655,-184.0,0.00019521,2]
[419788405,1775380246665,-356.684,0.00019521,2]
[419788407,1775380246676,-533.277,0.00019521,2]
[419788409,1775380246687,-151.0,0.00019539,2]
[419788411,1775380246697,-151.0,0.0001954,2]
[419788413,1775380246708,-693.3919763,0.00019552,2]
[419788415,1775380246718,-600.0,0.00019561,2]
[419788417,1775380246729,-166.7459012,0.00019583,14]
[419788419,1775380246739,-151.0,0.00019594,2]
[419788422,1775380246750,-159.725001,0.00019595,2]
[419788424,1775380246760,-719.04747942,0.00019607,2]
[419788426,1775380246771,-600.1629721,0.00019653,3]
[419788428,1775380246781,-745.65223616,0.00019662,2]
[419788430,1775380246792,-773.2413689,0.00019717,2]
[419788432,1775380246802,-578.20924308,0.0001977,2]
[419788434,1775380246813,-1750.60489871,0.0001977,2]
[419789944,1775381432205,-2251.31959154,0.00012828,2]
[419789945,1775381432218,-1119.71724561,0.00012828,2]
[419789946,1775381432232,-1628.96316285,0.00012828,2]
[419789947,1775381432242,-602.0,0.00012828,2]
[419789948,1775381432251,-606.0,0.00013056,2]
[419789949,1775381432260,-300.0,0.00013057,2]
[419789950,1775381432269,-300.0,0.00013057,2]
[419789951,1775381432279,-300.0,0.00013057,2]
[419789952,1775381432288,-300.0,0.00013057,2]
[419789953,1775381432299,-1000.0,0.00013699,2]
[419789954,1775381432310,-420.0,0.00014318,2]
[419789955,1775381432320,-420.0,0.00014318,2]
[419789956,1775381432331,-165.626586,0.00016732,2]
[419789957,1775381432342,-154.0,0.00018458,2]
[419789958,1775381432351,-500.0,0.00018644,2]
[419789959,1775381432361,-557.5788265,0.0001891,2]
[419789960,1775381432370,-138.83142465,0.0001891,2]
[419789974,1775381440618,-2091.48388135,0.0001891,2]
[419789975,1775381440628,-578.20924308,0.00018965,2]
[419789976,1775381440638,-599.60298507,0.0001902,2]
[419789977,1775381440648,-500.0,0.00019054,2]
[419789978,1775381440657,-154.0,0.00019054,2]
[419789979,1775381440666,-192.69931023,0.00019054,2]
[419789980,1775381440676,-621.78829552,0.00019075,2]
[419789981,1775381440685,-644.79446246,0.0001913,2]
[419789982,1775381440695,-668.65185757,0.00019185,2]
[419789983,1775381440705,-1000.0,0.000192,2]
[419789984,1775381440714,-693.3919763,0.0001924,2]
[419789985,1775381440723,-340.68727811,0.00019264,2]
[419789986,1775381440733,-302.51262048,0.00019269,2]
[419789987,1775381440742,-302.51262045,0.0001927,2]
[419789988,1775381440751,-302.51262045,0.00019271,2]
[419789989,1775381440760,-302.51262045,0.00019272,2]
[419789990,1775381440770,-302.51262045,0.00019273,2]
[419789991,1775381440779,-719.04747942,0.00019295,2]
[419789992,1775381440789,-745.65223616,0.0001935,2]
[419789993,1775381440798,-500.0,0.00019368,2]
[419789994,1775381440807,-209.33243938,0.00019368,2]
[419789995,1775381440817,-500.0,0.00019368,2]
[419789996,1775381440826,-500.0,0.00019368,2]
[419789997,1775381440836,-500.0,0.00019368,2]
[419789999,1775381440845,-500.0,0.00019368,2]
[419790000,1775381440854,-500.0,0.00019368,2]
[419790001,1775381440865,-500.0,0.00019368,2]
[419790002,1775381440874,-500.0,0.00019368,2]
[419790004,1775381440883,-303.4010582,0.00019368,2]
[419790005,1775381440892,-501.02742668,0.00019368,2]
[419790007,1775381440901,-500.0,0.00019368,2]
[419790009,1775381440910,-500.0,0.00019368,2]
[419790011,1775381440919,-500.0,0.00019368,2]
[419790013,1775381440928,-500.0,0.00019368,2]
[419790015,1775381440937,-274.98572415,0.00019368,2]
[419790017,1775381440946,-500.0,0.00019368,2]
[419790019,1775381440955,-500.0,0.00019368,2]
[419790021,1775381440964,-500.0,0.00019368,2]
[419790023,1775381440974,-500.0,0.00019368,2]
[419790025,1775381440983,-496.84496126,0.00019368,2]
[419790027,1775381440992,-500.0,0.00019368,2]
[419790029,1775381441001,-500.0,0.00019368,2]
[419790031,1775381441010,-500.0,0.00019368,2]
[419790033,1775381441020,-447.33910149,0.00019368,2]
[419790035,1775381441028,-500.0,0.00019368,2]
[419790037,1775381441038,-500.0,0.00019368,2]
[419790039,1775381441047,-500.0,0.00019368,2]
[419790041,1775381441055,-373.34579596,0.00019368,2]
[419790043,1775381441064,-500.0,0.00019368,2]
[419790045,1775381441074,-500.0,0.00019368,2]
[419790047,1775381441083,-500.0,0.00019368,2]
[419790048,1775381441092,-500.0,0.00019368,2]
[419790050,1775381441101,-500.0,0.00019368,2]
[419790052,1775381441110,-230.24177833,0.00019368,2]
[419790054,1775381441120,-500.0,0.00019368,2]
[419790056,1775381441129,-500.0,0.00019368,2]
[419790059,1775381441138,-500.0,0.00019368,2]
[419790061,1775381441148,-500.0,0.00019368,2]
[419790062,1775381441157,-500.0,0.00019368,2]
[419790064,1775381441166,-500.0,0.00019368,2]
[419790066,1775381441175,-500.0,0.00019368,2]
[419790068,1775381441185,-500.0,0.00019368,2]
[419790070,1775381441195,-500.0,0.00019368,2]
[419790072,1775381441204,-500.0,0.00019368,2]
[419790074,1775381441214,-500.0,0.00019368,2]
[419790076,1775381441223,-500.0,0.00019368,2]
[419790078,1775381441232,-500.0,0.00019368,2]
[419790080,1775381441242,-500.0,0.00019368,2]
[419790082,1775381441250,-500.0,0.00019368,2]
[419790084,1775381441259,-500.0,0.00019368,2]
[419790085,1775381441269,-500.0,0.00019368,2]
[419790087,1775381441278,-500.0,0.00019368,2]
[419790089,1775381441287,-500.0,0.00019368,2]
[419790091,1775381441297,-500.0,0.00019368,2]
[419790093,1775381441306,-500.0,0.00019368,2]
[419790095,1775381441315,-500.0,0.00019368,2]
[419790097,1775381441326,-500.0,0.00019368,2]
[419790099,1775381441337,-500.0,0.00019368,2]
[419790101,1775381441346,-591.65811051,0.00019368,2]
[419790103,1775381441355,-882.10350338,0.00019369,2]
[419790105,1775381441365,-500.0,0.00019369,2]
[419790107,1775381441374,-500.0,0.00019369,2]
[419790110,1775381441386,-882.10350338,0.00019369,2]
[419790111,1775381441396,-500.0,0.00019369,2]
[419790113,1775381441406,-882.10350338,0.00019369,2]